Cogmind - Beta 16.1 @@@ ROGUE MODE // 2026.04.03 @ 20:06:58 Player: Err. String Expected Got Nil Result: Destroyed by 4V-QZB(R) with Subdweller Laser Performance ------------- Evolutions (0) 0 Regions Visited (2) 400 Robots Destroyed (28) 140 Value Destroyed (597) 597 Prototype IDs (2) 40 Alien Tech Used (0) 0 Bonus (0) 0 TOTAL SCORE: 1177 Bonus ------- None Cogmind --------- Core Integrity 0/250 Matter 275/300 Energy 240/250 System Corruption 0% Temperature Cool (6) Movement Rolling (110) Location -10/Subcaves Parts ------- > --- POWER (1) -------- Ion Engine > --- PROPULSION (2) --- Subdweller Monowheel Subdweller Monowheel > --- UTILITY (2) ------ Medium Storage Unit Makeshift Targeting Computer > --- WEAPON (2) ------- Subdweller Machine Gun Subdweller Machine Gun > --- INVENTORY (10) --- Makeshift Power Source Improved Heat Sink Large Storage Unit Seismic Detector Makeshift Light Armor Plating Hacking Suite V3-11A's Pendant Mining Laser Peak State ------------ > --- POWER ------------ Light Nuclear Core > --- PROPULSION ------- Aluminum Leg Aluminum Leg > --- UTILITY ---------- Medium Storage Unit Makeshift Targeting Computer > --- WEAPON ----------- Subdweller Laser Battle Rifle > --- INVENTORY -------- Ion Engine Makeshift Power Source Subdweller Monowheel Improved Heat Sink Large Storage Unit Subdweller Optics Seismic Detector Hacking Suite Subdweller Machine Gun Mining Laser [Rating: 14] Favorites ----------- Power Ion Engine Engine Ion Engine Power Core Light Nuclear Core Propulsion Aluminum Leg Treads Light Treads Leg Aluminum Leg Wheel Subdweller Monowheel Utility Medium Storage Unit Device Seismic Detector Storage Medium Storage Unit Processor Makeshift Targeting Computer Protection Light Armor Plating Weapon Medium Laser Energy Gun Medium Laser Ballistic Gun Assault Rifle Ballistic Cannon Light Cannon Special Weapon Mining Laser Build | -11 -10 -10 ------- Run | Yrd Mat Sub Slots Evolved . | . . . Power . | . . . Propulsion . | . . . Utility . | . . . Weapon . | . . . Parts Attached 27 | . 16 11 Power 3 | . 2 1 Engine 2 | . 2 . Core 1 | . . 1 Reactor . | . . . Propulsion 9 | . 5 4 Treads 2 | . 2 . Leg 5 | . 3 2 Wheel 2 | . . 2 Hover . | . . . Flight . | . . . Utility 6 | . 5 1 Device 2 | . 2 . Storage 1 | . 1 . Processor 2 | . 1 1 Hackware . | . . . Protection 1 | . 1 . Artifact . | . . . Weapon 9 | . 4 5 Energy Gun 3 | . 1 2 Energy Cannon . | . . . Ballistic Gun 4 | . 1 3 Ballistic Cannon 1 | . 1 . Launcher . | . . . Special Weapon 1 | . 1 . Impact Weapon . | . . . Slashing Weapon . | . . . Piercing Weapon . | . . . Special Melee Weapon . | . . . Unidentified Prototypes . | . . . Parts Lost 12 | . 4 8 Power 1 | . . 1 Propulsion 3 | . 1 2 Utility 2 | . 1 1 Weapon 6 | . 2 4 Highest Loss Streak 4 | . 4 3 To Critical Strikes . | . . . Average Backups 8 | 4 8 9 Power 1 | 1 1 1 Propulsion 1 | 2 1 . Utility 3 | . 3 5 Weapon 1 | 1 1 2 Tool/Special . | . . . Unused Backups 13 | . 5 8 Power 4 | . 2 2 Propulsion . | . . . Utility 9 | . 3 6 Weapon . | . . . Tool/Special . | . . . Average Slot Usage (%) 96 | . 95 98 Engine 13 | . 14 12 Leg 23 | . 27 15 Wheel 4 | . . 12 Device 5 | . 7 2 Storage 14 | . 14 14 Processor 4 | . 1 10 Energy Gun 13 | . 14 13 Ballistic Gun 8 | . 7 10 Ballistic Cannon 4 | . 5 3 Peak Build Rating 14 | 6 9 14 Average Rating 8 | 6 7 11 On Entrance 6 | 6 6 8 Avg Prop Armor Cover (%) . | . . . Naked Turns . | . . . Heaviest Build 23 | 12 22 23 Greatest Support 40 | 20 40 40 Greatest Overweight (x) 1 | . 1 1 Average Overweight (x) . | . . . Largest Inventory Capacity 10 | 8 10 10 Average Capacity 9 | 8 9 10 Most Carried 10 | 6 10 10 Average Carried 8 | 4 8 9 Final Capacity 10 | 8 10 10 Final Carried 9 | 6 9 8 Class Distribution -------------------- 93% | Mutant 6% | Scavenger-Mutant Dominant Class ---------------- Mutant | -10/Materials Mutant | -10/Subcaves Resources | -11 -10 -10 ----------- Run | Yrd Mat Sub Matter Collected 850 | 206 386 258 Remotely . | . . . Salvage Created 784 | 109 503 172 Parts 55 | 9 32 14 Haulers Intercepted 1 | . 1 . Recyclers Shooed 3 | 2 1 . Parts Field Recycled . | . . . Retrieved Matter . | . . . Parts Self-Destructed 10 | . . 10 Prevented . | . . . Parts Restored . | . . . Kills | -11 -10 -10 ------- Run | Yrd Mat Sub Combat Hostiles Destroyed 18 | . 11 7 Guns 13 | . 6 7 Cannons 5 | . 5 . Classes Destroyed 9 | 2 6 1 Worker 2 | . 2 . Tunneler 3 | 2 1 . Hauler 1 | . 1 . Recycler 1 | 1 . . Operator 1 | . 1 . Watcher 2 | . 2 . Swarmer 6 | . 3 3 Grunt 8 | . 8 . Subdweller 4 | . . 4 Best Kill Streak 4 | 1 3 4 Combat Bots Only 4 | . 3 4 Max Kills in Single Turn 1 | 1 1 1 Gunslinging . | . . . Exploded . | . . . Melee . | . . . Uniques/NPCs Destroyed . | . . . Combat | -11 -10 -10 -------- Run | Yrd Mat Sub Hostile Shots Fired 142 | . 76 66 Missed 35 | . 21 14 Hits 107 | . 55 52 Projectile 107 | . 55 52 Damage Taken 1610 | . 691 919 Core 254 | . 137 117 Absorbed by Shields . | . . . Core Remaining (%) 100 | 100 . . Volleys Fired 109 | 7 74 28 Largest 2 | 2 2 2 Hottest 100 | 70 100 100 Shots Fired 200 | 14 133 53 Gun 145 | 14 86 45 Cannon 38 | . 32 6 Launcher . | . . . Special 17 | . 15 2 Kinetic 94 | 7 59 28 Thermal 106 | 7 74 25 Explosive . | . . . Electromagnetic . | . . . Robot Hit Streak 26 | 7 16 26 Robot Miss Streak 6 | 1 3 6 Penetration Max . | . . . Secondary Targets 2 | . . 2 Max Gunslinging Chain 1 | . . 1 Shots Hit Robots 127 | 11 78 38 Core Hits 48 | 4 32 12 Critical Kills . | . . . Critical Parts Destroyed . | . . . Critical Strikes 5 | . 3 2 Burn 5 | . 3 2 Melee Attacks . | . . . Impact . | . . . Slashing . | . . . Piercing . | . . . Sneak Attacks . | . . . Combat Hostiles . | . . . Follow-up Attacks . | . . . Damage Inflicted 1935 | 134 1156 645 Guns 1497 | 133 787 577 Cannons 437 | . 369 68 Explosions . | . . . Melee . | . . . Ramming 1 | 1 . . Kinetic 959 | 48 590 321 Thermal 975 | 85 566 324 Explosive . | . . . Electromagnetic . | . . . Impact . | . . . Slashing . | . . . Piercing . | . . . Highest Corruption . | . . . Average Corruption . | . . . Corruption Purged . | . . . Corruption Blocked . | . . . Overload Shots . | . . . Overflow Damage 7 | . 7 . Projectiles 7 | . 7 . Explosions . | . . . Melee . | . . . Knockbacks 8 | . 6 2 Impact . | . . . Kinetic 6 | . 4 2 Secondary 2 | . 2 . Self-Inflicted Damage . | . . . Shots . | . . . Rammed . | . . . Targets Rammed 1 | 1 . . Kicked 1 | 1 . . Crushed . | . . . Highest Temperature 258 | 38 258 4 Average Temperature 72 | 15 78 3 Received Heat Transfer 558 | . 378 180 Siege Activations . | . . . Martial Activations . | . . . Shielding Activations . | . . . Robots Disrupted . | . . . Combat Hostiles . | . . . Robots Corrupted . | . . . Combat Hostiles . | . . . Parts Fried . | . . . Impact Corruptions . | . . . Robots Melted . | . . . Combat Hostiles . | . . . Parts Melted 3 | . 2 1 Heat Transferred 2975 | 259 1887 829 Parts Sabotaged . | . . . Parts Stolen . | . . . Parts Stripped . | . . . Power Chain Reactions . | . . . Alert | -11 -10 -10 ------- Run | Yrd Mat Sub Maximum Alert Level . | . . . Low Security (%) 100 | 100 100 . Level 1 . | . . . Level 2 . | . . . Level 3 . | . . . Level 4 . | . . . Level 5 . | . . . High Security . | . . . Max Security . | . . . Peak Influence 102 | 5 102 . Initial . | . . . Average 24 | 3 26 . Influence Increases 485 | 15 335 135 Destroy 0b10 Robot/C 280 | . 220 60 Destroy 0b10 Robot/NC 50 | 15 35 . Destroy Leader 56 | . 56 . Successful Hack 19 | . 19 . Destroy Structure 5 | . 5 . Lose Combat Pursuer 75 | . . 75 Influence Decreases 485 | 15 304 166 Entered New Map 15 | . . 15 Time Decay 402 | 15 272 115 Lost Part 62 | . 32 30 Lost Ally 6 | . . 6 Squads Dispatched 3 | . 3 . Investigation 3 | . 3 . Extermination . | . . . Reinforcement . | . . . Assault . | . . . Garrison . | . . . Intercept . | . . . Searches Triggered . | . . . Construction Impeded . | . . . Haulers Reinforced . | . . . Active Scanning Responses . | . . . Cargo Convoy Interrupts . | . . . Stealth | -11 -10 -10 --------- Run | Yrd Mat Sub Distress Signals 2 | . 2 . Communications Jammed . | . . . Distress Signals . | . . . Times Spotted 37 | . 22 15 Peak Tracking Total 5 | . 5 4 Tactical Retreats 2 | . . 2 Traps | -11 -10 -10 ------- Run | Yrd Mat Sub Traps Triggered 5 | . 3 2 Indirectly . | . . . Trap Hack Attempts . | . . . Triggered . | . . . Disarmed . | . . . Reprogrammed . | . . . Reused . | . . . Traps Extracted . | . . . Installed . | . . . Triggered . | . . . Machines | -11 -10 -10 ---------- Run | Yrd Mat Sub Machines Disabled 1 | . 1 . Max in Single Turn 1 | . 1 . Machines Repaired . | . . . Machines Dismantled . | . . . Machines Sabotaged . | . . . Overloaded Fab Kills . | . . . Hacking | -11 -10 -10 --------- Run | Yrd Mat Sub Machines Accessed 9 | . 9 . Terminals 8 | . 8 . Fabricators . | . . . Repair Stations . | . . . Recycling Units 1 | . 1 . Scanalyzers . | . . . Garrison Access . | . . . Total Hacks 23 | . 23 . Successful 12 | . 12 . Failed 11 | . 11 . Catastrophic 3 | . 3 . Database Lockouts . | . . . Manual 22 | . 22 . Terminals 22 | . 22 . Fabricators . | . . . Repair Stations . | . . . Recycling Units 1 | . 1 . Scanalyzers . | . . . Garrison Access . | . . . Terminal Hacks 2 | . 2 . Prototype ID Bank 1 | . 1 . Terminal Index 1 | . 1 . Fabricator Hacks . | . . . Repair Station Hacks . | . . . Recycling Unit Hacks . | . . . Scanalyzer . | . . . Garrison Access Hacks . | . . . Unauthorized Hacks 10 | . 10 . Terminals 9 | . 9 . Track 1 | . 1 . Assimilate 1 | . 1 . Botnet 1 | . 1 . Operators 1 | . 1 . Skim 5 | . 5 . Fabricators . | . . . Repair Stations . | . . . Recycling Units 1 | . 1 . Recyclers 1 | . 1 . Scanalyzers . | . . . Garrison Access . | . . . Data Cores Recovered 1 | . 1 . Used 1 | . 1 . Hacking Detections 8 | . 8 . Full Trace Events 1 | . 1 . Feedback Events . | . . . Feedback Blocked . | . . . Robot Schematics Acquired . | . . . Robots Built . | . . . Authchips . | . . . Time . | . . . Total Robot Build Rating . | . . . Part Schematics Acquired . | . . . Parts Built . | . . . Authchips . | . . . Time . | . . . Total Part Build Rating . | . . . Part Studies Acquired . | . . . Parts Repaired . | . . . Time . | . . . Parts Recycled . | . . . Recycled Matter . | . . . Retrieved Matter . | . . . Retrieved Components . | . . . Parts Scanalyzed . | . . . Part Schematics Acquired . | . . . Parts Damaged . | . . . Bothacking | -11 -10 -10 ------------ Run | Yrd Mat Sub Used RIF Installer . | . . . Robots Hacked . | . . . Non-combat . | . . . Combat . | . . . Robot Hacks Applied . | . . . Relay Couplers Released . | . . . Fabnet Peak Effective % . | . . . Robots Rewired . | . . . Allies Hacked . | . . . Hacks Repelled . | . . . Allies | -11 -10 -10 -------- Run | Yrd Mat Sub Total Allies 1 | . 1 . Largest Group 1 | . 1 1 Highest-Rated Group 10 | . 10 10 Highest-Rated Ally 10 | . 10 10 Total Orders . | . . . Ally Attacks . | . . . Total Damage . | . . . Kills . | . . . Allies Corrupted . | . . . Allies Melted . | . . . Intel | -11 -10 -10 ------- Run | Yrd Mat Sub Active Infowar (turns) 877 | . 777 100 Optics 154 | . 154 . Seismic 723 | . 623 100 Robot Analysis Total . | . . . Derelict Logs Recovered . | . . . Drone Launches . | . . . Drone Recoveries . | . . . Exploration | -11 -10 -10 ------------- Run | Yrd Mat Sub Turns Passed 1831 | 60 1183 588 Spaces Moved 1022 | 9 662 351 Core . | . . . Treads 2 | . 2 . Legs 835 | 9 660 166 Wheels 185 | . . 185 Hover . | . . . Flight . | . . . Fastest Speed 110 | 120 120 110 Average Speed 120 | 120 120 119 Slowest Speed 190 | 120 190 190 Overloaded Moves . | . . . Propulsion Burnouts . | . . . Robots Hopped . | . . . Potential Cave-ins . | . . . Cave-ins Triggered . | . . . Exploration Rate (%) 41 | 2 92 29 Regions Visited 2 Branch Regions 1 Pre-discovered Areas 1 | . . 1 Known Exits Taken 1 | . 1 . Unknown Exits Taken 1 | 1 . . Scrap Searched 7 | . . 7 Spaces Dug 3 | . 3 . Terrain Destroyed 5 | . 5 . Melee . | . . . Projectile 5 | . 5 . AOE . | . . . Terrain Rammed . | . . . Walls Destroyed . | . . . Machines Disabled . | . . . Actions | -11 -10 -10 --------- Run | Yrd Mat Sub Total 1386 | 45 882 459 Wait 170 | 25 98 47 Move 1020 | 8 661 351 Hop . | . . . Pick Up 25 | 2 14 9 Fast Attach 3 | . 1 2 Attach 14 | . 6 8 Detach 2 | . 2 . Swap 26 | . 18 8 Drop 16 | 2 8 6 Fire 109 | 7 74 28 Melee . | . . . Ram . | . . . Kick 1 | 1 . . Crush . | . . . Escape Stasis . | . . . Rewire . | . . . Trap . | . . . Miscellaneous . | . . . Route ------- -11/Scrapyard -10/Materials (discovered 5 exits: *Mat x3 / *Min / *Sub) -10/Subcaves History --------- Turn | Location | Event 9 | -11/Scrapyard | Discovered new exit (range 3) 61 | -11/Scrapyard | Entered Materials 260 | -10/Materials | Discovered new exit (range 10) 301 | -10/Materials | Build established: Mutant 450 | -10/Materials | Discovered new exit (range 13) 696 | -10/Materials | Core integrity fell below 50% 738 | -10/Materials | Lost 4 parts (1n1u2w) 935 | -10/Materials | Learned Storage stockpile data 971 | -10/Materials | Learned Storage security intel 995 | -10/Materials | Identified exit to Materials 995 | -10/Materials | Identified exit to Subcaves 1011 | -10/Materials | Learned Storage terminal intel 1018 | -10/Materials | Identified exit to Mines 1019 | -10/Materials | Learned 2 Storage zone layouts 1041 | -10/Materials | Learned Storage emergency access door positions 1244 | -10/Materials | Entered Subcaves 1244 | -10/Subcaves | Accompanied by 1 ally 1245 | -10/Subcaves | Approached by a straggling Scientist 1246 | -10/Subcaves | Learned location of Zion (-6) 1246 | -10/Subcaves | Met a Zionite searching for "candidates" 1311 | -10/Subcaves | Lost 3 allies 1415 | -10/Subcaves | Lost 3 parts (1n1u1w) 1489 | -10/Subcaves | Disturbed a concealed Subdweller 1510 | -10/Subcaves | Core integrity fell below 20% 1534 | -10/Subcaves | Lost 3 parts (1p1n1w) 1613 | -10/Subcaves | Visited triangular shrine 1620 | -10/Subcaves | Found Prototype Device 1832 | -10/Subcaves | Destroyed by 4V-QZB(R) with Subdweller Laser Last Messages --------------- 01637_ V3-11A destroyed. 01639_ Sub. Power Source melted. 01639_ CX-KC5(R) destroyed. 01647_ Acquired 11 matter. 01658_ Dropped Sub. Laser. 01663_ Acquired 10 matter. 01732_ Searching scrap... 01732_ Found Riot Gun. 01732_ Found 50 Matter. 01743_ Searching scrap... 01743_ Found Sub. Optics. 01743_ Found 33 Matter. 01755_ Triggered Piercing Trap. 01755_ Spikes shoot up from the floor. 01755_ Critical hit (Impale). 01765_ Triggered Piercing Trap. 01765_ Spikes shoot up from the floor. 01765_ Critical hit (Impale). 01809_ Sub. Laser destroyed. 01829_ Battle Rifle destroyed. Map ----- +----------------------------------------------------+ | ????????????????????????????????????????????? | | ????????????????????????????????????????????? | | ????????????????????????????????????????????? | | ????????????????????????????????????????????? | | ????????????????????????????????????????????? | | ????????????????????????????????????????????? | | ????????????????????????????????????????????? | | ????????????????????????????????????????????? | | ????????????????????????????????????????????? | | ????????????????????????????????????????????? | | ????????????????????????????????????????????? | | ????????????????????????????????????????????? | | ?????????????????? ?????????????????????????? | | ?????????????????? "????????????????????????? | | ????????????????? " #???????????????????????? | | ????????????????##"" #?????##???????????????? | | ???????????""#### "" ####? #???????????????? | | ??????????? " ## #???????????????? | | ???????????" #???????????????? | | ????????????# ##??????????????? | | ???????????## ##?????????????? | | ??????????"" #?????????????? | | ??????????" #?????????????? | | ??????????" #?????????????? | | ???????????# ##RR #?????????????? | | ???????????# ??#@ #?????????????? | | ???????????# ### #?????????????? | | ???????????# #?????????????? | | ???????????#### #?????????????? | | ??????????????# #?????????????? | | ??????????????# ## ###?????????????? | | ?????????????# ??# ## #???????????????? | | ????????????? ????###?## #???????????????? | | ????????????# ?? ??????# #???????????????? | | ???????????????? ??????# #???????????????? | | ???????????????## ?????## #???????????????? | | ???????????????# ? ##???# #???????????????? | | ???????????????# # ??# #???????????????? | | ???????????????# ??## #???????????????? | | ????????????????? ??# ##??????????????? | | ??????????????????# #^ ?# #??????????????? | | ???????????????????# ?# #??????????????? | | ???????????????????# ## ##??????????????? | | ???????????????????# #???????????????? | | ???????????????????# #???????????????? | | ???????????????????# # ###??????????????? | | ???????????????????## ## #??????????????? | | ????????????????????# ^ #??????????????? | | ????????????????????# #??????????????? | | ????????????????????# #??????????????? | +----------------------------------------------------+ Best States ------------- Heat Dissipation 25 Energy Generation 14 Energy Capacity 250 Matter Stores 300 Matter Capacity 300 Sight Range 18 Terrain Scan Density 10 Armor Coverage 150 Evasion (%) 55 Targeting Accuracy 10 Recoil Reduction 2 Item Schematics ----------------- None Robot Schematics ------------------ None Fabricated ------------ Nothing Repaired ---------- Nothing Studied --------- None Alien Tech Used ----------------- None Achievements -------------- None Challenges ------------ None Game ------ Seed PotentialServoScreen Manual? 0 Play Time 00:23:39 Cumulative 161.0 hours Start 2026.04.03 @ 19:43:57 End 2026.04.03 @ 20:06:58 Sessions 1 Manual Loads 0 Difficulty Rogue Special Mode None Game No. 122 Rogue 122 Adventurer 0 Explorer 0 Win Type - Total 4 Types 3/0/1/0/0/0/0/0/0/0 Lore% 60 Gallery% 50 Achievement% 37 Wizard Run 0 Options --------- Layout 2 ASCII 0 Keyboard 1 Movement Numpad Keybinds 0 Fullscreen 2 Font 32/SmallcapsGlow Map View 50x44 Zoom Use 0% Tactical HUD 1 Map Filters NONE Filters NONE Steam 1 RUN: 9cc8a7cb-ea6b-4bba-acf2-5afc91393c42